Workbook

Sheet Sheet1
B1: Width | C1: Length | D1: Sq. Ft.
A2: Conference / Office #3 | B2: =(15*12+8)/12 -> 15.66666667 | C2: 10 | D2: =C2*B2 -> 156.6666667
A3: Office 1 | B3: =(15*12+9)/12 -> 15.75 | C3: =(14*12+6)/12 -> 14.5 | D3: =C3*B3 -> 228.375
A4: Office 2 | B4: =(11*12+4)/12 -> 11.33333333 | C4: =(12*12+4)/12 -> 12.33333333 | D4: =C4*B4 -> 139.7777778
A5: Copy | B5: =(12*12+10)/12 -> 12.83333333 | C5: 11 | D5: =(C5*B5)-4 -> 137.1666667
A6: Admin | B6: =(11*12+4)/12 -> 11.33333333 | C6: =30 -> 30 | D6: =C6*B6 -> 340
A7: Entrance Hall | B7: 8 | C7: =(13*12+6)/12 -> 13.5 | D7: 108
A8: Hall | B8: 4 | C8: =(15*12+2)/12 -> 15.16666667 | D8: 60.66666667
A9: Kitchen | B9: =(9*12+2)/12 -> 9.166666667 | C9: =(11*12+3)/12 -> 11.25 | D9: 103.125
A10: Bath | B10: 7 | C10: 5 | D10: 35
D11: =SUM(D2:D10) -> 1308.777778
